bitfinex/quotes_SOLUSD_20251013
["timestamp","ask_amount","ask_price","bid_price","bid_amount"]
[1760359925514,0.10074405,192.91,192.9,0.29307091]
[1760359925712,0.10074405,192.91,192.9,5.47710408]
[1760359926013,0.1094408,192.92,192.9,5.47710408]
[1760359926210,0.1094408,192.92,192.91,9.46]
[1760359926413,0.1094408,192.92,192.91,221.16]
[1760359926620,0.1094408,192.92,192.91,211.7]
[1760359926827,0.1094408,192.92,192.91,221.16]
[1760359927918,0.1094408,192.92,192.91,93.84376444]
[1760359928104,0.1094408,192.92,192.91,84.67674217]
[1760359928308,0.1094408,192.92,192.91,94.13674217]
[1760359928718,1e-08,192.92,192.91,237.73321738]
[1760359928898,1e-08,192.93,192.91,237.44023965]
[1760359929100,1e-08,192.93,192.92,9.75293655]
[1760359929315,1e-08,192.94,192.92,9.97293655]
[1760359929834,0.1008148,192.96,192.94,10.87647521]
[1760359930003,1e-08,192.97,192.95,9.73273507]
[1760359930193,1e-08,192.97,192.95,212.21273507]
[1760359930394,1e-08,192.98,192.97,10.87647521]
[1760359930630,1e-08,192.99,192.97,232.01647521]
[1760359930819,1e-08,192.99,192.98,11.38900885]
[1760359931124,1e-08,192.99,192.98,0.29253364]
[1760359931610,1e-08,192.99,192.97,9.46]
[1760359931817,1e-08,192.99,192.98,14.93437248]
[1760359932011,1e-08,192.99,192.98,5.47437248]
[1760359932222,1e-08,192.99,192.98,14.93437248]
[1760359932396,0.68000001,192.99,192.98,5.47437248]
[1760359933030,1e-08,192.99,192.98,5.47437248]
[1760359934330,1e-08,192.99,192.98,0.29248835]
[1760359934533,5.72097872,192.99,192.92,12.95808246]
[1760359934708,5.04097871,192.95,192.9,0.29280005]
[1760359934910,5.04097871,192.94,192.91,5.18376444]
[1760359935212,0.68,192.93,192.91,5.18376444]
[1760359935523,7.3250943,192.95,192.91,5.18376444]
[1760359935698,0.68,192.94,192.91,5.18376444]
[1760359935903,0.68,192.93,192.91,5.18376444]
[1760359936504,0.68,192.92,192.91,5.18376444]
[1760359936829,0.68,192.92,192.9,0.29280005]
[1760359936830,0.68,192.92,192.9,5.18401754]
[1760359937015,0.68,192.91,192.87,0.29309487]
[1760359937201,0.68,192.9,192.87,5.47793439]
[1760359937404,0.68,192.89,192.87,0.29309487]
[1760359937717,8.0050943,192.88,192.85,0.29322051]
[1760359937924,0.68,192.88,192.85,5.47857053]
[1760359938122,0.09352356,192.86,192.85,5.47857053]
[1760359938436,0.11225575,192.87,192.85,16.35504574]
[1760359938604,1e-08,192.88,192.87,10.87647521]
[1760359938799,1e-08,192.88,192.87,11.1697477]
[1760359939028,1e-08,192.88,192.87,0.29327249]
[1760359939228,1e-08,192.88,192.87,9.73327249]
[1760359939424,1e-08,192.88,192.87,0.29327249]
[1760359939827,1e-08,192.88,192.86,9.73327249]
[1760359940132,1e-08,192.88,192.87,14.62483952]
[1760359940646,1e-08,192.88,192.87,5.18483952]
[1760359940814,19.99999999,192.68,192.59,0.1]
[1760359941011,19.99999999,192.67,192.61,0.66]
[1760359941208,0.68,192.71,192.61,0.66]
[1760359941411,7.3250943,192.72,192.65,20.8]
[1760359941630,19.99999999,192.71,192.66,9.66]
[1760359941830,7.3250943,192.7,192.61,12.97921709]
[1760359942150,27.32509429,192.66,192.61,18.17105551]
[1760359942311,27.32509429,192.66,192.62,9.66]
[1760359942507,19.99999999,192.66,192.62,9.66]
[1760359942711,7.3250943,192.68,192.62,0.66]
[1760359942932,7.3250943,192.68,192.61,18.17105551]
[1760359942933,7.3250943,192.66,192.61,18.17105551]
[1760359943133,7.3250943,192.64,192.62,9.66]
[1760359943330,19.99999999,192.68,192.61,18.17143449]
[1760359943511,7.3250943,192.66,192.62,9.66]
[1760359943712,19.99999999,192.66,192.62,9.66]
[1760359944128,19.99999999,192.66,192.63,5.19129938]
[1760359944333,20.67999999,192.66,192.63,5.19129938]
[1760359945041,0.68,192.65,192.63,5.19129938]
[1760359945540,0.68,192.65,192.64,9.66]
[1760359946042,0.68,192.65,192.63,5.19129938]
[1760359946242,0.68,192.65,192.64,14.8510299]
[1760359946546,0.68,192.65,192.61,12.97959607]
[1760359946726,0.68,192.64,192.6,5.19210799]
[1760359946912,7.3250943,192.61,192.59,0.1]
[1760359947237,7.3250943,192.61,192.59,5.29236426]
[1760359947414,19.99999999,192.64,192.6,9.64]
[1760359947616,20.67999999,192.64,192.6,9.64]
[1760359947811,28.00509429,192.63,192.59,18.27330823]
[1760359948135,28.00509429,192.63,192.59,5.29236426]
[1760359948136,19.99999999,192.61,192.59,5.29236426]
[1760359948340,19.99999999,192.64,192.6,9.64]
[1760359949125,20.67999999,192.64,192.6,9.64]
[1760359949432,19.99999999,192.64,192.6,9.64]
[1760359949641,7.3250943,192.66,192.6,9.64]
[1760359950020,7.34565065,192.66,192.6,9.64]
[1760359950220,7.34565065,192.66,192.62,5.19156889]
[1760359950423,8.02565065,192.65,192.62,5.19156889]
[1760359950626,19.99999999,192.68,192.63,0.66]
[1760359950826,27.34565064,192.72,192.64,17.64565065]
[1760359951039,19.99999999,192.72,192.65,7.34565065]
[1760359951242,8.02565065,192.73,192.65,7.34565065]
[1760359951522,19.99999999,192.72,192.65,7.34565065]
[1760359952043,27.34565064,192.72,192.65,7.34565065]
[1760359952247,19.99999999,192.71,192.66,18.16671857]
[1760359952550,27.34565064,192.72,192.67,9.64]
[1760359952848,19.99999999,192.68,192.66,18.16671857]
[1760359953026,19.99999999,192.68,192.67,9.64]
[1760359953222,7.34565065,192.69,192.66,5.19049102]
[1760359953426,27.34565064,192.7,192.67,9.64]
[1760359953751,28.02565064,192.7,192.68,9.64]
[1760359954455,28.02565064,192.7,192.69,5.18968291]
[1760359954661,28.02565064,192.7,192.64,5.1910299]
[1760359954827,0.64850843,192.75,192.64,5.1910299]
[1760359954828,19.99999999,192.66,192.64,5.1910299]
[1760359955030,28.02565064,192.66,192.65,9.64]
[1760359955228,19.99999999,192.66,192.65,9.64]
[1760359955449,0.68,192.68,192.65,9.64]
[1760359955450,19.99999999,192.69,192.65,10.3]
[1760359955651,19.99999999,192.74,192.68,7.34565065]
[1760359955825,0.68,192.75,192.66,0.66]
[1760359955826,27.34565064,192.73,192.66,0.66]
[1760359956024,27.34565064,192.73,192.65,28.14565065]
[1760359956025,28.02565064,192.73,192.65,28.14565065]
[1760359956332,7.34565065,192.71,192.66,14.83049102]
[1760359956530,19.99999999,192.72,192.68,7.34565065]
[1760359956843,19.99999999,192.73,192.69,9.64]
[1760359957142,19.99999999,192.73,192.68,0.66]
[1760359957347,27.34565064,192.71,192.69,9.64]
[1760359957522,19.99999999,192.73,192.69,9.64]
[1760359957719,19.99999999,192.74,192.69,9.64]
[1760359957922,8.02565065,192.74,192.69,9.64]
[1760359958137,0.10800103,192.7,192.69,9.64]
[1760359958340,0.10800103,192.7,192.66,26.17236922]
[1760359958553,0.10800103,192.7,192.66,18.16671857]
[1760359958736,20.10800102,192.7,192.67,9.64]
[1760359959257,0.68,192.69,192.66,18.16671857]
[1760359959426,8.02565065,192.69,192.67,9.64]
[1760359959628,19.99999999,192.67,192.62,5.19156889]
[1760359959855,28.02565064,192.67,192.63,9.64]
[1760359960232,19.99999999,192.65,192.63,9.64]
[1760359960550,19.99999999,192.67,192.64,18.82860465]
[1760359960758,7.34565065,192.65,192.6,5.19210799]
[1760359960963,20.67999999,192.64,192.61,22.6191297]
[1760359961262,0.68,192.63,192.62,9.64]
[1760359961562,19.99999999,192.61,192.6,5.19210799]
[1760359961763,27.34565064,192.62,192.6,14.83210799]
[1760359961947,19.99999999,192.6,192.59,0.1]
[1760359962266,28.67466413,192.6,192.59,0.1]
[1760359962631,28.02565064,192.6,192.59,0.1]
[1760359962829,19.99999999,192.6,192.59,0.1]
[1760359963245,19.99999999,192.62,192.59,5.29237758]
[1760359963451,0.72,192.61,192.59,5.29237758]
[1760359963646,28.06565064,192.6,192.59,0.1]
[1760359963850,19.99999999,192.61,192.59,14.93237758]
[1760359964057,19.99999999,192.6,192.59,14.93237758]
[1760359964256,19.99999999,192.61,192.59,14.93237758]
[1760359964462,0.72,192.61,192.59,14.93237758]
[1760359964634,19.99999999,192.62,192.59,27.91332155]
[1760359964829,19.99999999,192.61,192.59,27.91332155]
[1760359965770,19.99999999,192.62,192.59,27.91332155]
[1760359966139,19.99999999,192.61,192.59,27.91332155]
[1760359966856,27.34565064,192.63,192.59,27.91332155]
[1760359967078,19.99999999,192.63,192.6,0.68]
[1760359967352,19.99999999,192.65,192.61,9.62]
[1760359967555,19.99999999,192.63,192.61,9.62]
[1760359967775,19.99999999,192.6,192.59,0.1]
[1760359967959,28.06565064,192.6,192.59,0.1]
[1760359968150,28.06565064,192.6,192.59,9.72]
[1760359968332,28.06565064,192.6,192.59,9.74]
[1760359968755,28.06565064,192.6,192.59,0.1]
[1760359968955,20.71999999,192.6,192.59,0.1]
[1760359969156,19.99999999,192.6,192.59,5.29237758]
[1760359969871,19.99999999,192.6,192.59,4.79237758]
[1760359970387,19.99999999,192.6,192.59,14.41237758]
[1760359970867,19.99999999,192.64,192.59,15.09237758]
[1760359971039,20.71999999,192.67,192.6,0.68]
[1760359971370,19.99999999,192.65,192.61,9.62]
[1760359971547,19.99999999,192.66,192.6,7.34565065]
[1760359971864,19.99999999,192.65,192.61,9.62]
[1760359972063,19.99999999,192.66,192.59,17.77332155]
[1760359972266,19.99999999,192.59,192.56,5.19318653]
[1760359972569,19.99999999,192.59,192.57,9.62]
[1760359972863,19.99999999,192.59,192.58,5.19264721]
[1760359973065,19.99999999,192.61,192.58,18.85426523]
[1760359973366,19.99999999,192.61,192.58,18.17426523]
[1760359973550,19.99999999,192.63,192.58,18.17426523]
[1760359973757,19.99999999,192.65,192.6,7.34565065]
[1760359973959,19.99999999,192.67,192.61,7.34565065]
[1760359974172,19.99999999,192.66,192.62,9.62]
[1760359974365,19.99999999,192.66,192.63,9.62]
[1760359974542,19.99999999,192.69,192.64,7.34565065]
[1760359974739,0.72,192.68,192.65,5.19076044]
[1760359974965,19.99999999,192.69,192.58,25.96323605]
[1760359974966,19.99999999,192.65,192.58,7.34565065]
[1760359975171,19.99999999,192.61,192.54,21.48]
[1760359975472,19.99999999,192.59,192.55,16.96565065]
[1760359975645,19.99999999,192.6,192.56,10.32]
[1760359975840,19.99999999,192.6,192.54,28.14565065]
[1760359976046,19.99999999,192.59,192.55,7.34565065]
[1760359976362,20.71999999,192.59,192.54,7.34565065]
[1760359976567,7.34565065,192.62,192.55,9.62]
[1760359976568,19.99999999,192.57,192.55,9.62]
[1760359976787,19.99999999,192.59,192.57,5.19291686]
[1760359977089,19.99999999,192.6,192.58,9.62]
[1760359977256,19.99999999,192.61,192.58,9.62]
[1760359977778,19.99999999,192.63,192.57,18.17520901]
[1760359977971,19.99999999,192.6,192.58,9.62]
[1760359978181,0.11376058,192.59,192.58,9.62]
[1760359978479,0.11376058,192.59,192.57,25.52085966]
[1760359978678,0.11376058,192.59,192.58,9.62]
[1760359978879,0.10276442,192.6,192.58,22.85829786]
[1760359979081,1e-08,192.6,192.59,8.04565065]
[1760359979679,1e-08,192.6,192.59,16.96565065]
[1760359979883,1e-08,192.6,192.59,17.66565065]
[1760359980286,1e-08,192.6,192.59,9.62]
[1760359980466,19.99999999,192.57,192.5,5.19480519]
[1760359980668,19.99999999,192.56,192.51,29.95192301]
[1760359980862,19.99999999,192.56,192.52,7.34565065]
[1760359981067,19.99999999,192.58,192.53,17.66565065]
[1760359981273,19.99999999,192.57,192.54,16.96565065]
[1760359981599,19.99999999,192.57,192.51,18.1808077]
[1760359981770,20.71999999,192.57,192.52,16.96565065]
[1760359981968,19.99999999,192.56,192.52,16.96565065]
[1760359982170,19.99999999,192.58,192.55,7.34565065]
[1760359982393,19.99999999,192.59,192.55,7.34565065]
[1760359982591,19.99999999,192.57,192.51,18.18087371]
[1760359982762,20.71999999,192.58,192.53,7.34565065]
[1760359982968,19.99999999,192.57,192.55,5.19345624]
[1760359983168,20.71999999,192.57,192.55,5.19345624]
[1760359983497,19.99999999,192.56,192.55,5.19345624]
[1760359983689,19.99999999,192.56,192.55,14.81345624]
[1760359983897,20.71999999,192.57,192.55,14.81345624]
[1760359984069,19.99999999,192.56,192.55,14.81345624]
[1760359984273,19.99999999,192.58,192.55,35.8427475]
[1760359984475,20.0,192.6,192.57,7.34565065]
[1760359984671,1e-08,192.6,192.58,9.62]
[1760359985071,1e-08,192.6,192.57,7.34565065]
[1760359985072,1e-08,192.6,192.59,12.53802823]
[1760359985272,0.10669712,192.62,192.59,12.53802823]
[1760359985273,0.10669712,192.62,192.59,35.8389722]
[1760359985476,0.10669712,192.62,192.61,7.34565065]
[1760359985800,0.10669712,192.62,192.61,16.96565065]
[1760359985801,1e-08,192.62,192.61,16.96565065]
[1760359985984,1e-08,192.62,192.61,17.66565065]
[1760359986299,0.1060286,192.64,192.61,17.66565065]
[1760359986510,0.10878426,192.65,192.62,10.32]
[1760359986792,0.10503296,192.67,192.65,7.34565065]
[1760359986969,0.10503296,192.67,192.65,16.96565065]
[1760359987174,0.10503296,192.67,192.65,12.53641109]
[1760359987374,0.10503296,192.67,192.65,5.19076044]
[1760359987572,20.82929028,192.66,192.65,14.81076044]
[1760359987774,19.99999999,192.65,192.6,18.17194653]
[1760359987989,19.99999999,192.63,192.61,9.62]
[1760359988173,19.99999999,192.63,192.62,9.62]
[1760359988381,19.99999999,192.64,192.6,25.51759718]
[1760359988590,19.99999999,192.64,192.62,9.62]
[1760359988894,19.99999999,192.63,192.59,12.53787928]
[1760359989109,0.72,192.62,192.6,9.62]
[1760359989278,19.99999999,192.6,192.54,5.19372597]
[1760359989605,19.99999999,192.6,192.5,10.87647521]
[1760359989606,19.99999999,192.53,192.5,5.19480519]
[1760359989823,19.99999999,192.54,192.51,9.62]
[1760359989984,19.99999999,192.51,192.5,18.18181817]
[1760359990187,19.99999999,192.52,192.5,35.14746882]
[1760359990580,19.99999999,192.51,192.5,5.19480519]
[1760359990784,19.99999999,192.5,192.49,5.2950509]
[1760359990991,20.71999999,192.5,192.49,14.9150509]
[1760359991308,20.71999999,192.5,192.49,9.72]
[1760359992111,20.71999999,192.5,192.49,14.91507506]
[1760359992484,20.71999999,192.5,192.49,0.1]
[1760359992676,28.06565064,192.5,192.49,0.1]
[1760359992876,28.06565064,192.5,192.41,0.1]
[1760359993080,27.34565064,192.44,192.43,9.72]
[1760359993289,19.99999999,192.44,192.43,9.72]
[1760359993999,20.67999999,192.44,192.43,14.9166949]
[1760359994580,20.67999999,192.44,192.43,9.72]
[1760359994807,33.87162859,192.44,192.43,0.1]
[1760359995005,33.87162859,192.44,192.41,0.1]
[1760359995006,19.99999999,192.42,192.41,0.1]
[1760359995192,19.99999999,192.42,192.23,2.71651126]
[1760359995193,19.99999999,192.29,192.23,2.71651126]
[1760359995393,25.05603513,192.24,192.15,15.38763278]
[1760359995592,25.05603513,192.23,192.16,27.85362187]
[1760359995792,19.99999999,192.23,192.19,20.8]
[1760359996099,19.99999999,192.25,192.22,5.05603514]
[1760359996302,19.99999999,192.26,192.23,14.69603514]
[1760359996601,19.99999999,192.29,192.24,9.64]
[1760359996803,19.99999999,192.27,192.24,5.05603514]
[1760359997105,19.99999999,192.26,192.25,9.64]
[1760359997403,19.99999999,192.28,192.25,23.26149677]
[1760359997586,19.99999999,192.27,192.25,27.84546163]
[1760359997782,20.8,192.35,192.26,5.77603514]
[1760359997783,19.99999999,192.28,192.26,5.77603514]
[1760359997988,19.99999999,192.31,192.27,0.72]
[1760359998205,0.11395824,192.29,192.28,9.64]
[1760359998713,0.11395824,192.29,192.28,15.41603514]
[1760359998905,0.11395824,192.29,192.28,5.77603514]
[1760359999198,0.11395824,192.29,192.28,19.89678404]
[1760359999601,0.11395824,192.29,192.28,20.61678404]
[1760359999798,0.11395824,192.29,192.28,5.2007489]
[1760360000002,25.84999337,192.29,192.28,9.64]
[1760360000206,19.99999999,192.28,192.26,10.25715501]
[1760360000392,20.11395823,192.29,192.26,10.97715501]
[1760360000594,20.11395823,192.29,192.28,5.05603514]
[1760360000800,0.11395824,192.29,192.28,15.41603514]
[1760360001031,0.11395824,192.29,192.28,5.77603514]
[1760360001195,0.11395824,192.29,192.28,20.61678404]
[1760360001518,0.11395824,192.29,192.28,15.5607489]
[1760360001809,0.11395824,192.29,192.28,20.61678404]
[1760360001990,1e-08,192.29,192.28,20.61678404]
[1760360002185,1e-08,192.31,192.29,10.87647521]
[1760360002385,1e-08,192.31,192.3,14.69603514]
[1760360002604,1e-08,192.31,192.3,5.77603514]
[1760360002804,1e-08,192.31,192.3,15.41603514]
[1760360003192,1e-08,192.31,192.3,15.560208]
[1760360003409,20.0,192.31,192.3,5.200208]
[1760360003884,1e-08,192.31,192.3,15.560208]
[1760360004089,1e-08,192.31,192.3,20.61624314]
[1760360004305,1e-08,192.32,192.3,10.97624314]
[1760360004605,1e-08,192.32,192.31,16.65251035]
[1760360004797,1e-08,192.32,192.31,26.29251035]
[1760360005411,1e-08,192.32,192.31,31.49244795]
[1760360005602,1e-08,192.33,192.31,31.49244795]
[1760360005811,1e-08,192.33,192.32,5.77603514]
[1760360006112,1e-08,192.33,192.32,0.72]
[1760360006308,1e-08,192.33,192.31,5.1999376]
[1760360006606,1e-08,192.33,192.32,14.69603514]
[1760360006809,0.09509906,192.34,192.33,5.05603514]
[1760360006810,1e-08,192.34,192.33,5.05603514]
[1760360006992,1e-08,192.35,192.33,5.77603514]
[1760360007198,1e-08,192.35,192.34,5.77603514]
[1760360007406,1e-08,192.35,192.34,19.91516168]
[1760360007600,1e-08,192.35,192.34,5.19912654]
[1760360007810,20.68,192.35,192.34,14.85912654]
[1760360008114,20.0,192.35,192.34,14.85912654]
[1760360008496,20.68,192.35,192.34,5.19912654]
[1760360008703,20.68,192.35,192.34,14.85912654]
[1760360008912,20.0,192.35,192.34,14.85912654]
[1760360009110,1e-08,192.35,192.34,5.19912654]
[1760360009314,1e-08,192.35,192.34,14.85912654]
[1760360010008,1e-08,192.35,192.34,5.91912654]
[1760360010208,1e-08,192.35,192.34,14.85912654]
[1760360010513,1e-08,192.35,192.34,15.55912654]
[1760360010813,1e-08,192.35,192.34,14.83912654]
[1760360011285,1e-08,192.35,192.34,9.64]
[1760360011489,1e-08,192.35,192.34,0.72]
[1760360011689,1e-08,192.35,192.34,9.64]
[1760360012098,1e-08,192.35,192.34,10.36]
[1760360012806,19.99999999,192.42,192.34,31.16]
[1760360013129,19.99999999,192.45,192.36,10.87647521]
[1760360013296,0.68,192.46,192.37,18.9141051]
[1760360013496,19.99999999,192.45,192.37,28.5541051]
[1760360013726,0.68,192.46,192.37,18.9141051]
[1760360014017,20.67999999,192.46,192.38,9.64]
[1760360014220,0.68,192.46,192.37,44.90568382]
[1760360014394,0.68,192.46,192.38,9.64]
[1760360014590,0.68,192.46,192.39,9.64]
[1760360014819,19.99999999,192.48,192.39,10.36]
[1760360015219,19.99999999,192.48,192.4,9.64]
[1760360016001,19.99999999,192.48,192.41,18.19032274]
[1760360016196,19.99999999,192.48,192.42,9.64]
[1760360016414,19.99999999,192.48,192.43,9.64]
[1760360016900,20.67999999,192.48,192.43,9.64]
[1760360017812,19.99999999,192.49,192.43,0.72]
[1760360018125,19.99999999,192.47,192.45,18.18654195]
[1760360018297,0.1043116,192.46,192.45,18.18654195]
[1760360018504,20.78431159,192.46,192.45,9.62]
[1760360018821,20.10431159,192.46,192.45,9.62]
[1760360019004,0.1043116,192.46,192.43,18.18818739]
[1760360019197,0.1043116,192.46,192.45,9.62]
[1760360019604,0.1043116,192.46,192.43,18.18818739]
[1760360020013,20.10431159,192.46,192.44,9.62]
[1760360020195,0.1043116,192.46,192.4,44.17757847]
[1760360020396,19.99999999,192.44,192.4,5.19750519]
[1760360020602,19.99999999,192.42,192.41,9.62]
[1760360021118,19.99999999,192.41,192.4,5.19750519]
[1760360021327,19.99999999,192.42,192.4,14.81750519]
[1760360021510,0.1043116,192.46,192.4,27.81126818]
[1760360021694,0.1043116,192.46,192.41,0.72]
[1760360021897,0.68,192.45,192.43,5.1966949]
[1760360022130,0.68,192.44,192.41,5.19723507]
[1760360022421,5.04875102,192.42,192.35,18.19599687]
[1760360022600,0.69,192.43,192.35,18.19599687]
[1760360022805,0.69,192.43,192.36,10.36]
[1760360023806,0.7943116,192.46,192.37,10.36]
[1760360024010,0.7943116,192.46,192.38,18.19315936]
[1760360024212,0.7943116,192.46,192.39,10.36]
[1760360024213,0.1043116,192.46,192.39,10.36]
[1760360024415,0.1043116,192.46,192.4,9.64]
[1760360024619,0.1043116,192.46,192.39,0.72]
[1760360025524,0.1043116,192.46,192.4,9.62]
[1760360025730,0.1043116,192.46,192.41,0.72]
[1760360025909,0.1043116,192.46,192.42,10.34]
[1760360026109,0.1043116,192.46,192.43,27.80843215]
[1760360027417,5.73875102,192.45,192.44,9.62]
[1760360027730,0.69,192.45,192.44,9.62]
[1760360028032,0.69,192.45,192.44,14.81642485]
[1760360028205,0.69,192.45,192.44,5.19642485]
[1760360028409,5.15306262,192.46,192.44,5.19642485]
[1760360028410,0.1043116,192.46,192.44,14.81642485]
[1760360028625,0.7943116,192.46,192.44,14.81642485]
[1760360028829,0.7943116,192.46,192.44,5.19642485]
[1760360029027,0.7943116,192.46,192.45,9.62]
[1760360030306,0.7943116,192.46,192.45,14.81615484]
[1760360030503,0.1043116,192.46,192.45,9.62]
[1760360030710,0.1043116,192.46,192.45,14.81615484]
[1760360031522,0.1043116,192.46,192.45,5.19615484]
[1760360031731,0.1043116,192.46,192.45,14.79615484]
[1760360032037,0.1043116,192.46,192.45,14.81615484]
[1760360032628,0.1043116,192.46,192.45,14.79615484]
[1760360033016,0.1043116,192.46,192.45,5.19615484]
[1760360033324,0.1043116,192.46,192.45,14.79615484]
[1760360034237,0.1043116,192.46,192.45,5.19615484]
[1760360034432,0.1043116,192.46,192.45,14.79615484]
[1760360034627,0.1043116,192.46,192.45,9.6]
[1760360034827,0.1043116,192.46,192.42,18.18935691]
[1760360035033,0.1043116,192.46,192.43,9.6]
[1760360035228,0.1043116,192.46,192.43,10.3]
[1760360035428,0.1043116,192.46,192.42,18.18935691]
[1760360035633,0.1043116,192.46,192.43,10.3]
[1760360036138,0.1043116,192.46,192.44,5.19642485]
[1760360036435,0.1043116,192.46,192.43,10.3]
[1760360036436,5.15306262,192.46,192.43,5.19662221]
[1760360036650,0.1043116,192.46,192.43,5.19662221]
[1760360036857,0.1043116,192.46,192.44,9.6]
[1760360037136,0.1043116,192.46,192.45,9.6]
[1760360037517,5.04875102,192.47,192.45,9.6]
[1760360037715,5.04875102,192.46,192.45,14.79612002]
[1760360037918,5.73875102,192.46,192.39,12.99415141]
[1760360038116,5.04875102,192.4,192.34,5.19912654]
[1760360038341,5.04875102,192.38,192.35,9.6]
[1760360038530,5.73875102,192.4,192.36,9.6]
[1760360039046,5.73875102,192.4,192.34,5.19912654]
[1760360039349,5.73875102,192.4,192.36,5.19858598]
[1760360039636,5.73875102,192.4,192.37,9.6]
[1760360039946,0.69,192.4,192.36,5.19858598]
[1760360040145,0.69,192.4,192.37,9.6]
[1760360040520,5.73875102,192.4,192.37,9.6]
[1760360040721,0.64958686,192.43,192.37,9.6]
[1760360041031,0.6495531,192.44,192.38,0.7]
[1760360041237,0.6495531,192.44,192.4,5.19750519]
[1760360041424,0.11025275,192.46,192.41,10.28]
[1760360041425,5.84900377,192.46,192.41,10.28]
[1760360041624,5.04875102,192.42,192.34,0.7]
[1760360041820,5.04875102,192.42,192.35,9.58]
[1760360041821,5.04875102,192.4,192.35,9.58]
[1760360042028,5.73875102,192.4,192.34,0.7]
[1760360042237,0.69,192.4,192.35,9.58]
[1760360042435,5.04875102,192.4,192.35,10.28]
[1760360043034,5.04875102,192.4,192.36,9.58]
[1760360043343,0.69,192.42,192.37,9.58]
[1760360043344,5.04875102,192.41,192.37,9.58]
[1760360043541,5.73875102,192.41,192.37,9.58]
[1760360044337,5.73875102,192.41,192.37,14.77815773]
[1760360045144,5.73875102,192.41,192.38,9.58]
[1760360045343,5.73875102,192.41,192.37,5.19815773]
[1760360045543,5.73875102,192.41,192.38,9.58]
[1760360045744,5.04875102,192.39,192.35,5.19869756]
[1760360045930,5.73875102,192.39,192.35,5.19869756]
[1760360046130,5.04875102,192.37,192.3,92.20031411]
[1760360046349,5.04875102,192.36,192.31,14.7799376]
[1760360046537,5.04875102,192.36,192.31,15.4799376]
[1760360047047,5.04875102,192.37,192.31,15.4799376]
[1760360047727,5.04875102,192.37,192.31,28.4797816]
[1760360047927,6.38850671,192.38,192.31,28.4797816]
[1760360048129,6.38850671,192.38,192.32,9.58]
[1760360048549,0.64975569,192.38,192.33,5.19939686]
[1760360048748,0.64975569,192.38,192.34,9.56]
[1760360049047,0.69,192.37,192.34,9.56]
[1760360049246,5.04875102,192.38,192.34,9.56]
[1760360049452,5.04875102,192.35,192.27,79.9]
[1760360049753,5.73875102,192.37,192.28,15.4607489]
[1760360050050,5.04875102,192.4,192.29,10.26]
[1760360050254,0.64965438,192.41,192.3,0.7]
[1760360050443,5.6984054,192.41,192.32,18.19883527]
[1760360050751,5.6984054,192.41,192.33,0.7]
[1760360050752,0.64965438,192.41,192.33,0.7]
[1760360050969,0.6495531,192.44,192.34,9.58]
[1760360051259,0.64951935,192.45,192.35,0.7]
[1760360051456,0.64951935,192.45,192.36,9.58]
[1760360051658,0.64951935,192.45,192.37,0.7]
[1760360051832,0.64951935,192.45,192.38,9.58]
[1760360052160,0.11025275,192.46,192.39,0.7]
[1760360052458,0.11025275,192.46,192.4,9.58]
[1760360052654,0.11025275,192.46,192.41,18.91032274]
[1760360052832,0.11025275,192.46,192.42,9.58]
[1760360053037,0.11025275,192.46,192.42,10.3]
[1760360053340,0.11025275,192.46,192.43,10.28]
[1760360053754,0.11025275,192.46,192.44,0.72]
[1760360054047,0.0182971,192.5,192.45,9.56]
[1760360054246,0.0182971,192.5,192.46,11.59647521]
[1760360054452,0.0182971,192.5,192.47,9.56]
[1760360054754,0.0182971,192.5,192.48,14.75534497]
[1760360054927,0.0182971,192.5,192.48,5.19534497]
[1760360054928,0.6782971,192.5,192.48,5.19534497]
[1760360055128,0.0182971,192.5,192.49,9.56]
[1760360055541,0.0182971,192.5,192.47,5.19552072]
[1760360055752,0.0182971,192.5,192.48,9.58]
[1760360055960,5.06704812,192.5,192.48,9.58]
[1760360056133,5.06704812,192.5,192.42,0.72]
[1760360056134,6.3581354,192.49,192.42,0.72]
[1760360056336,20.8,192.46,192.41,5.19723507]
[1760360056533,20.8,192.46,192.4,12.99337891]
[1760360056534,20.8,192.42,192.39,5.91762887]
[1760360057047,20.8,192.42,192.4,9.56]
[1760360057358,20.8,192.42,192.39,5.91762887]